[Event "FRA-ch Youth U12 2018"]
[Site "Agen"]
[Date "2018.04.20"]
[Round "7"]
[White "Riss, Selenia"]
[Black "Berezovsky, Fiorina"]
[Result "0-1"]
[ECO "B24"]
[WhiteElo "1138"]
[BlackElo "1678"]
[Annotator "NA"]
[PlyCount "106"]
[EventDate "2018.??.??"]
[EventType "swiss"]
[EventCountry "FRA"]
[SourceTitle "playchess.com"]
[Source "ChessBase"]
[SourceQuality "1"]
[TimeControl "5400+30"]

1. e4 {[%emt 0:00:00]} c5 {[%emt 0:00:18]} 2. Nc3 {[%emt 0:00:00]} Nc6 {[%emt 0:00:34]} 3. g3 {[%emt 0:00:00]} g6 {[%emt 0:00:57]} 4. Bg2 {[%emt 0:00:28]} Bg7 {[%emt 0:00:43]} 5. f4 {[%emt 0:00:33]} d6 {[%emt 0:02:11]} 6. d3 {[%emt 0:01:12]} e6 {[%emt 0:03:03]} 7. Be3 {[%emt 0:00:44]} Nge7 {[%emt 0:01:15]} 8. Nf3 {[%emt 0:01:20]} O-O {[%emt 0:01:38]} 9. O-O {[%emt 0:00:46]} b6 {[%emt 0:02:33]} 10. Bf2 {[%emt 0:03:25]} d5 {[%emt 0:02:10]} 11. e5 {[%emt 0:02:33]} d4 {[%emt 0:02:07]} 12. Ne2 {[%emt 0:01:40]} Nd5 {[%emt 0:01:12]} 13. Qd2 {[%emt 0:03:56]} h6 {[%emt 0:03:20]} 14. h3 {[%emt 0:01:48]} Bb7 {[%emt 0:01:47]} 15. g4 {[%emt 0:02:06]} Nce7 {[%emt 0:02:44]} 16. h4 {[%emt 0:06:06]} Qd7 {[%emt 0:03:12]} 17. Ng3 {[%emt 0:02:07]} Rac8 {[%emt 0:04:43]} 18. h5 {[%emt 0:01:41]} a6 {[%emt 0:05:18]} 19. Ne4 {[%emt 0:04:57]} gxh5 {[%emt 0:04:07]} 20. gxh5 {[%emt 0:00:46]} Nf5 {[%emt 0:00:40]} 21. Rae1 {[%emt 0:04:57]} Nde3 {[%emt 0:02:47]} 22. Bxe3 {[%emt 0:02:28]} dxe3 {[%emt 0:00:48]} 23. Rxe3 {[%emt 0:07:25]} Nxe3 {[%emt 0:01:03]} 24. Qxe3 {[%emt 0:00:12]} Rfd8 {[%emt 0:03:39]} 25. Kh1 {[%emt 0:04:30]} Bxe4 {[%emt 0:02:11]} 26. Qxe4 {[%emt 0:00:34]} Qc6 {[%emt 0:01:39]} 27. Qe1 {[%emt 0:01:45]} Qa4 {[%emt 0:03:46]} 28. Qd2 {[%emt 0:05:28]} Qb4 {[%emt 0:02:33]} 29. c3 {[%emt 0:01:43]} Qb5 {[%emt 0:01:42]} 30. d4 {[%emt 0:01:59]} cxd4 {[%emt 0:01:00]} 31. cxd4 {[%emt 0:00:41]} Qa5 {[%emt 0:00:41]} 32. Qxa5 {[%emt 0:00:55]} bxa5 {[%emt 0:00:11]} 33. Rf2 {[%emt 0:03:13]} Rc1+ {[%emt 0:01:21]} 34. Kh2 {[%emt 0:02:05]} Rdc8 {[%emt 0:01:19]} 35. b3 {[%emt 0:02:42]} R8c2 {[%emt 0:00:31]} 36. Rxc2 {[%emt 0:00:23]} Rxc2 {[%emt 0:00:02]} 37. a4 {[%emt 0:00:23]} Rb2 {[%emt 0:00:24]} 38. Kg3 {[%emt 0:01:14]} Rxb3 {[%emt 0:00:16]} 39. Bf1 {[%emt 0:00:16]} Ra3 {[%emt 0:00:34]} 40. Bxa6 {[%emt 0:00:15]} Rxa4 {[%emt 0:00:15]} 41. Nd2 {[%emt 0:00:22]} Rxd4 {[%emt 0:01:02]} 42. Nb3 {[%emt 0:00:37]} Rb4 {[%emt 0:00:42]} 43. Nc1 {[%emt 0:01:40]} a4 {[%emt 0:00:32]} 44. Na2 {[%emt 0:01:12]} Rb3+ {[%emt 0:00:35]} 45. Kg4 {[%emt 0:01:48]} f5+ {[%emt 0:01:00]} 46. exf6 {[%emt 0:00:11]} Bxf6 {[%emt 0:00:20]} 47. Bc4 {[%emt 0:00:48]} Rb6 {[%emt 0:00:25]} 48. f5 {[%emt 0:00:33]} Kf7 {[%emt 0:01:31]} 49. fxe6+ {[%emt 0:00:55]} Ke7 {[%emt 0:00:24]} 50. Kf5 {[%emt 0:01:09]} a3 {[%emt 0:00:49]} 51. Kg6 {[%emt 0:01:53]} Bg5 {[%emt 0:00:16]} 52. Kf5 {[%emt 0:00:48]} Rb2 {[%emt 0:00:25]} 53. Ke5 {[%emt 0:02:11]} Rh2 {[%emt 0:00:56]} 0-1

[Event "FRA-ch Youth U12 2018"]
[Site "Agen"]
[Date "2018.04.21"]
[Round "8"]
[White "Droin, Augustin"]
[Black "Trabet, Mathis"]
[Result "1-0"]
[ECO "B70"]
[WhiteElo "1975"]
[BlackElo "1909"]
[Annotator "NA"]
[PlyCount "115"]
[EventDate "2018.??.??"]
[EventType "swiss"]
[EventCountry "FRA"]
[SourceTitle "playchess.com"]
[Source "ChessBase"]
[SourceQuality "1"]
[TimeControl "5400+30"]

1. e4 {[%emt 0:00:00]} c5 {[%emt 0:00:04]} 2. Nf3 {[%emt 0:00:00]} d6 {[%emt 0:00:14]} 3. d4 {[%emt 0:00:00]} cxd4 {[%emt 0:00:24]} 4. Nxd4 {[%emt 0:00:00]} Nf6 {[%emt 0:00:34]} 5. Nc3 {[%emt 0:00:03]} g6 {[%emt 0:00:23]} 6. h3 {[%emt 0:03:32]} a6 {[%emt 0:03:42]} 7. g4 {[%emt 0:06:10] B90: Sicilian Najdorf: Unusual White 6th moves, 6 Be3 Ng4 and 6 Be3 e5} (7. g3 Nc6 8. Be3 Bg7 9. Bg2 O-O 10. O-O Nd7 11. b3 Nxd4 12. Bxd4 Bxd4 13. Qxd4 b6 14. Nd5 Bb7 {½-½ (40) Carlsen,M (2832)-Nakamura,H (2785) Stavanger 2017}) 7... b5 {[%emt 0:05:37]} 8. Bg2 {[%emt 0:08:51]} Bb7 {[%emt 0:04:31]} 9. Qe2 $146 {[%emt 0:01:19]} ({White should try Predecessor:} 9. O-O $14 Nbd7 10. Re1 e5 11. Nde2 h5 12. Bg5 hxg4 13. hxg4 Be7 14. Ng3 Rc8 {0-1 (36) Drori,S (2420)-Ponkratov,P (2613) Batumi 2018}) 9... Qc7 {[%emt 0:08:41]} 10. Bg5 {[%emt 0:04:10]} Bg7 {[%emt 0:08:42]} 11. O-O-O {[%emt 0:08:33]} Nbd7 {[%emt 0:08:28]} 12. Nd5 {[%emt 0:07:00]} Nxd5 {[%emt 0:09:24]} 13. exd5 {[%emt 0:00:08]} Nf6 {[%emt 0:02:58]} (13... O-O $11) 14. Rhe1 {[%emt 0:02:13]} h6 {[%emt 0:07:09]} 15. Bh4 {[%emt 0:00:07]} Rd8 {[%emt 0:15:30]} 16. f4 {[%emt 0:06:05]} Rd7 {[%emt 0:03:45]} 17. Nc6 {[%emt 0:00:24]} Nxd5 {[%emt 0:07:36]} 18. Bxd5 {[%emt 0:00:27]} Bxc6 {[%emt 0:00:48]} 19. Bxc6 {[%emt 0:00:09]} Qxc6 {[%emt 0:00:16]} 20. Bxe7 {[%emt 0:00:19]} Qc4 {[%emt 0:02:22]} 21. Qxc4 {[%emt 0:01:18]} bxc4 {[%emt 0:00:08]} 22. Bxd6+ {[%emt 0:00:05]} Kd8 {[%emt 0:00:24]} 23. Be5 {[%emt 0:00:09]} f6 {[%emt 0:01:47]} 24. Bc3 {[%emt 0:00:09]} g5 {[%emt 0:03:43]} 25. Re4 {[%emt 0:00:37]} Re8 {[%emt 0:02:41]} 26. Rxc4 {[%emt 0:01:37]} Rxd1+ {[%emt 0:00:18]} 27. Kxd1 {[%emt 0:00:05]} Re3 {[%emt 0:00:08]} 28. fxg5 {[%emt 0:00:10]} hxg5 {[%emt 0:00:21]} 29. Rd4+ $18 {[%emt 0:00:35]} Ke7 {[%emt 0:00:23]} 30. Rd3 {[%emt 0:00:05]} Re6 {[%emt 0:00:13]} 31. Kd2 {[%emt 0:00:09]} Kf7 {[%emt 0:00:29]} 32. a4 {[%emt 0:00:48]} Bf8 {[%emt 0:00:15]} 33. Rd5 {[%emt 0:02:56]} Bd6 {[%emt 0:00:28]} 34. Kd3 {[%emt 0:00:51]} Bf4 {[%emt 0:00:57]} 35. Bd2 {[%emt 0:00:53]} Bg3 {[%emt 0:01:45]} 36. b4 {[%emt 0:00:34]} Rb6 {[%emt 0:01:53]} 37. c4 {[%emt 0:00:08]} Ke6 {[%emt 0:00:24]} 38. Ke4 {[%emt 0:00:43]} Rb8 {[%emt 0:00:35]} 39. Bc3 {[%emt 0:00:35]} Bf4 {[%emt 0:01:17]} 40. Rf5 {[%emt 0:00:43]} Rc8 {[%emt 0:00:41]} 41. Rxf6+ {[%emt 0:00:12]} Ke7 {[%emt 0:00:01]} 42. Rxa6 {[%emt 0:00:35]} Rxc4+ {[%emt 0:00:10]} 43. Kd3 {[%emt 0:00:05]} Rc8 {[%emt 0:00:11]} 44. b5 {[%emt 0:00:19]} Kd7 {[%emt 0:00:10]} 45. Bd2 {[%emt 0:01:05]} Bxd2 {[%emt 0:00:44]} 46. Kxd2 {[%emt 0:00:04]} Rh8 {[%emt 0:00:05]} 47. Rg6 {[%emt 0:00:23]} Rxh3 {[%emt 0:00:04]} 48. Rxg5 {[%emt 0:00:04]} Ra3 {[%emt 0:00:12]} 49. Rd5+ {[%emt 0:00:03]} Ke6 {[%emt 0:00:07]} 50. Rd4 {[%emt 0:00:03]} Ke5 {[%emt 0:00:21]} 51. Rb4 {[%emt 0:00:07]} Rh3 {[%emt 0:00:50]} 52. b6 {[%emt 0:00:10]} Rh2+ {[%emt 0:00:07]} 53. Kc3 {[%emt 0:00:08]} Rh8 {[%emt 0:00:17]} 54. b7 {[%emt 0:00:04]} Rb8 {[%emt 0:00:06]} 55. a5 {[%emt 0:00:04]} Kd6 {[%emt 0:00:03]} 56. a6 {[%emt 0:00:04]} Kc7 {[%emt 0:00:07]} 57. a7 {[%emt 0:00:08]} Rh8 {[%emt 0:00:10]} 58. b8=Q+ {[%emt 0:00:06]} 1-0

[Event "FRA-ch Youth U12 2018"]
[Site "Agen"]
[Date "2018.04.21"]
[Round "8"]
[White "Patole, Noam"]
[Black "Mekhane, Adam"]
[Result "1-0"]
[ECO "C48"]
[WhiteElo "1903"]
[BlackElo "1907"]
[Annotator "NA"]
[PlyCount "137"]
[EventDate "2018.??.??"]
[EventType "swiss"]
[EventCountry "FRA"]
[SourceTitle "playchess.com"]
[Source "ChessBase"]
[SourceQuality "1"]
[TimeControl "5400+30"]

1. e4 {[%emt 0:00:00]} e5 {[%emt 0:00:03]} 2. Nf3 {[%emt 0:00:00]} Nc6 {[%emt 0:00:03]} 3. Nc3 {[%emt 0:00:17]} Nf6 {[%emt 0:01:03]} 4. Bb5 {[%emt 0:02:24]} Nd4 {[%emt 0:03:41]} 5. Bc4 {[%emt 0:01:00]} Bc5 {[%emt 0:01:01]} 6. d3 {[%emt 0:06:27]} d6 {[%emt 0:04:04]} 7. h3 {[%emt 0:03:08] C48: Four Knights: 4 Bb5, replies other than 4...Bb4} (7. Na4 b5 8. Nxd4 bxc4 9. Nf5 Bxf5 10. exf5 cxd3 11. Nxc5 dxc5 12. cxd3 Qd7 13. Qf3 O-O 14. O-O Rfd8 {½-½ (28) Wei,Y (2743)-Caruana,F (2811) Wijk aan Zee 2018}) 7... O-O {[%emt 0:03:39]} 8. O-O {[%emt 0:06:35] LiveBook: 6 Games} c6 {[%emt 0:08:11]} 9. Bg5 {[%emt 0:07:55]} (9. Nxd4 $11 Bxd4 10. Qf3) 9... a5 $146 {[%emt 0:12:02]} ({Predecessor:} 9... b5 10. Bb3 a5 11. a4 Nxb3 12. cxb3 b4 13. Ne2 h6 14. Bh4 Re8 {0-1 (38) Moradiabadi,E (2574)-Villanueva,M (2425) chess.com INT 2017}) 10. a4 {[%emt 0:06:03]} Be6 {[%emt 0:04:38]} 11. Nxd4 {[%emt 0:06:37]} exd4 {[%emt 0:11:00]} 12. Ne2 {[%emt 0:00:44]} Bxc4 {[%emt 0:03:14]} 13. dxc4 {[%emt 0:01:16]} h6 {[%emt 0:00:47]} 14. Bxf6 {[%emt 0:01:46]} Qxf6 {[%emt 0:01:47]} 15. Qd3 {[%emt 0:00:15]} Rad8 {[%emt 0:04:52]} 16. Rad1 {[%emt 0:01:20]} d5 {[%emt 0:02:45]} 17. cxd5 {[%emt 0:01:05]} cxd5 {[%emt 0:00:12]} 18. exd5 {[%emt 0:00:24]} Rxd5 {[%emt 0:02:22]} 19. Nc3 {[%emt 0:03:08]} Rd7 {[%emt 0:04:42]} 20. Ne4 {[%emt 0:01:21]} Qb6 {[%emt 0:01:53]} 21. Qc4 {[%emt 0:09:16]} Rc8 {[%emt 0:06:20]} 22. Rd3 {[%emt 0:06:26]} Qb4 {[%emt 0:07:00]} 23. Qxb4 {[%emt 0:01:14]} axb4 {[%emt 0:01:03]} 24. Rfd1 {[%emt 0:00:15]} Ba7 {[%emt 0:02:10]} 25. c3 {[%emt 0:00:39]} bxc3 {[%emt 0:02:29]} 26. Nxc3 {[%emt 0:00:16]} dxc3 {[%emt 0:02:49]} 27. Rxd7 {[%emt 0:00:10]} cxb2 {[%emt 0:00:24]} 28. Rxb7 {[%emt 0:00:23]} Rc1 {[%emt 0:00:59]} 29. Rf1 {[%emt 0:00:12]} Bd4 {[%emt 0:00:37]} 30. a5 {[%emt 0:02:08]} Ra1 {[%emt 0:01:01]} 31. Rb8+ {[%emt 0:00:19]} Kh7 {[%emt 0:00:04]} 32. Rb5 {[%emt 0:00:17]} Bc3 {[%emt 0:01:49]} 33. Rb3 {[%emt 0:01:34]} Bd4 {[%emt 0:01:00]} 34. Rb5 {[%emt 0:02:12]} Kg6 {[%emt 0:00:58]} 35. g4 {[%emt 0:00:26]} Kf6 {[%emt 0:00:42]} 36. Rb4 {[%emt 0:00:47]} Ke5 {[%emt 0:04:20]} 37. Kg2 {[%emt 0:00:49]} Bc3 {[%emt 0:00:39]} 38. Rb5+ {[%emt 0:02:13]} Kd4 {[%emt 0:00:36]} 39. Rxb2 {[%emt 0:00:35]} Rxf1 40. Kxf1 {[%emt 0:00:08]} Bxa5 {[%emt 0:02:40]} 41. Rb7 {[%emt 0:00:14]} Bc3 {[%emt 0:00:37]} 42. Rxf7 {[%emt 0:00:06]} Ke4 {[%emt 0:00:01]} 43. Ke2 {[%emt 0:00:15]} Kd5 {[%emt 0:00:22]} 44. f4 {[%emt 0:00:12]} Ke6 {[%emt 0:00:23]} 45. Rb7 {[%emt 0:00:09]} Kf6 {[%emt 0:01:14]} 46. Kd3 {[%emt 0:00:19]} Be1 {[%emt 0:00:16]} 47. Ke4 {[%emt 0:00:12]} Bf2 {[%emt 0:00:09]} 48. Rc7 {[%emt 0:00:13]} Be1 {[%emt 0:01:06]} 49. Rc6+ {[%emt 0:00:16]} Kf7 {[%emt 0:00:28]} 50. Kf5 {[%emt 0:00:13]} Ba5 {[%emt 0:00:29]} 51. g5 {[%emt 0:00:20]} hxg5 {[%emt 0:00:22]} 52. fxg5 {[%emt 0:00:09]} Ke7 {[%emt 0:00:30]} 53. Kg6 {[%emt 0:00:07]} Bd2 {[%emt 0:00:30]} 54. h4 {[%emt 0:00:21]} Be1 {[%emt 0:00:10]} 55. h5 {[%emt 0:00:15]} Bh4 {[%emt 0:00:30]} 56. h6 {[%emt 0:00:12]} gxh6 {[%emt 0:00:12]} 57. gxh6 {[%emt 0:00:06]} Bg3 {[%emt 0:00:37]} 58. h7 {[%emt 0:00:23]} Be5 {[%emt 0:00:11]} 59. Rc8 {[%emt 0:00:08]} Kd7 {[%emt 0:00:18]} 60. Rg8 {[%emt 0:00:12]} Kc6 {[%emt 0:00:20]} 61. Rg7 {[%emt 0:00:06]} Bxg7 {[%emt 0:00:05]} 62. Kxg7 Kd5 63. h8=Q {[%emt 0:00:28]} Ke5 {[%emt 0:00:03]} 64. Qh4 {[%emt 0:00:33]} Kf5 {[%emt 0:00:04]} 65. Qd4 {[%emt 0:00:46]} Kg5 {[%emt 0:00:02]} 66. Qe4 {[%emt 0:00:13]} Kh5 {[%emt 0:00:05]} 67. Qg2 {[%emt 0:00:22]} Kh4 {[%emt 0:00:01]} 68. Kf6 {[%emt 0:00:13]} Kh5 {[%emt 0:00:11]} 69. Qh3# {[%emt 0:00:08]} 1-0

[Event "FRA-ch Youth U12 2018"]
[Site "Agen"]
[Date "2018.04.21"]
[Round "8"]
[White "Warnier, Yanis"]
[Black "Morais, Thomas"]
[Result "1/2-1/2"]
[ECO "B43"]
[WhiteElo "1657"]
[BlackElo "1706"]
[Annotator "NA"]
[PlyCount "76"]
[EventDate "2018.??.??"]
[EventType "swiss"]
[EventCountry "FRA"]
[SourceTitle "playchess.com"]
[Source "ChessBase"]
[SourceQuality "1"]
[TimeControl "5400+30"]

1. e4 {[%emt 0:00:00]} c5 {[%emt 0:00:15]} 2. Nf3 {[%emt 0:00:00]} e6 {[%emt 0:00:13]} 3. d4 {[%emt 0:00:00]} cxd4 {[%emt 0:00:14]} 4. Nxd4 {[%emt 0:00:00]} a6 {[%emt 0:00:17]} 5. Nc3 {[%emt 0:00:21]} Qc7 {[%emt 0:00:10]} 6. Be2 {[%emt 0:00:19]} Bb4 {[%emt 0:02:48]} 7. O-O {[%emt 0:02:28]} Nf6 {[%emt 0:05:53]} 8. Be3 {[%emt 0:14:32]} Bxc3 {[%emt 0:05:38]} 9. bxc3 {[%emt 0:00:49]} Nxe4 {[%emt 0:01:41]} 10. c4 {[%emt 0:01:09]} Nc3 {[%emt 0:01:08]} 11. Qd3 {[%emt 0:01:06]} Nxe2+ {[%emt 0:00:16]} 12. Nxe2 {[%emt 0:01:31]} b5 {[%emt 0:15:59]} 13. Qc3 {[%emt 0:04:39]} O-O {[%emt 0:13:03]} 14. cxb5 {[%emt 0:01:37]} Qxc3 {[%emt 0:00:32]} 15. Nxc3 {[%emt 0:00:05]} axb5 {[%emt 0:02:28]} 16. Nxb5 {[%emt 0:00:35]} Ba6 {[%emt 0:08:00]} 17. Rfb1 {[%emt 0:01:40]} Bxb5 {[%emt 0:00:23]} 18. Rxb5 {[%emt 0:00:26]} Nc6 {[%emt 0:01:23]} 19. a4 {[%emt 0:26:49]} Rfb8 {[%emt 0:09:34]} 20. Rab1 {[%emt 0:03:17]} h6 {[%emt 0:09:20]} 21. Rxb8+ {[%emt 0:06:49]} Rxb8 {[%emt 0:01:39]} 22. Rxb8+ {[%emt 0:00:18]} Nxb8 {[%emt 0:00:09]} 23. Bc5 {[%emt 0:00:24]} Na6 {[%emt 0:00:58]} 24. Ba3 {[%emt 0:00:07]} f6 {[%emt 0:02:50]} 25. Kf1 {[%emt 0:00:04]} d5 {[%emt 0:00:41]} 26. Ke2 {[%emt 0:00:09]} Kf7 {[%emt 0:01:22]} 27. Kd3 {[%emt 0:01:26]} e5 {[%emt 0:01:07]} 28. c4 {[%emt 0:00:38]} Ke6 {[%emt 0:01:45]} 29. cxd5+ {[%emt 0:00:15]} Kxd5 {[%emt 0:00:12]} 30. Bf8 {[%emt 0:00:19]} g6 {[%emt 0:02:56]} 31. Bxh6 {[%emt 0:01:18]} Nc5+ {[%emt 0:00:19]} 32. Ke3 {[%emt 0:00:14]} Nxa4 {[%emt 0:00:14]} 33. Kf3 {[%emt 0:03:30]} Nc5 {[%emt 0:01:57]} 34. h4 {[%emt 0:00:54]} e4+ {[%emt 0:05:26]} 35. Ke3 {[%emt 0:01:33]} Ne6 {[%emt 0:00:56]} 36. f3 {[%emt 0:04:03]} exf3 {[%emt 0:02:02]} 37. Kxf3 {[%emt 0:00:37]} Ke5 {[%emt 0:00:31]} 38. Be3 {[%emt 0:00:23]} f5 {[%emt 0:01:30]} 1/2-1/2

[Event "FRA-ch Youth U12 2018"]
[Site "Agen"]
[Date "2018.04.21"]
[Round "8"]
[White "Beurois, Alexandre"]
[Black "Maurizzi, Marc Andria"]
[Result "0-1"]
[ECO "A40"]
[WhiteElo "1604"]
[BlackElo "2119"]
[Annotator "NA"]
[PlyCount "66"]
[EventDate "2018.??.??"]
[EventType "swiss"]
[EventCountry "FRA"]
[SourceTitle "playchess.com"]
[Source "ChessBase"]
[SourceQuality "1"]
[TimeControl "5400+30"]

1. d4 {[%emt 0:00:06]} e6 {[%emt 0:00:12]} 2. c4 {[%emt 0:00:13]} b6 {[%emt 0:00:06]} 3. Nc3 {[%emt 0:01:18]} Bb7 {[%emt 0:01:52]} 4. Nf3 {[%emt 0:01:17]} f5 {[%emt 0:01:35]} 5. Bf4 {[%emt 0:04:23]} Nf6 {[%emt 0:02:08]} 6. e3 {[%emt 0:03:34]} Bb4 {[%emt 0:01:40] LiveBook: 6 Games A40: Unusual replies to 1 d4} 7. Be2 {[%emt 0:05:22]} O-O {[%emt 0:04:44]} 8. O-O {[%emt 0:04:29]} Bxc3 {[%emt 0:00:23]} 9. bxc3 {[%emt 0:00:21]} Ne4 {[%emt 0:06:31]} 10. Rc1 {[%emt 0:13:27]} (10. Qc2 d6 11. Nd2 Nxd2 12. Qxd2 {½-½ (44) Kraus,T (2420)-Stocek,J (2566) Prague 2017}) 10... d6 {[%emt 0:03:23]} 11. Nd2 $146 {[%emt 0:13:03]} ({Predecessor:} 11. h3 Nd7 12. Nd2 Qe7 13. Nxe4 Bxe4 14. Bf3 Nf6 {1-0 (41) Temiz,E (1485)-Ozenir,E (1921) Batumi 2014}) 11... Nxd2 {[%emt 0:02:05]} 12. Qxd2 {[%emt 0:00:35]} Nd7 {[%emt 0:00:13]} 13. Rfd1 {[%emt 0:03:35]} Qf6 {[%emt 0:02:44]} 14. Rb1 {[%emt 0:05:11]} g5 {[%emt 0:00:56]} 15. Bg3 {[%emt 0:07:38] [#]} f4 $1 {[%emt 0:00:17]} 16. exf4 {[%emt 0:02:04]} gxf4 {[%emt 0:00:39]} 17. Qd3 {[%emt 0:04:22]} fxg3 {[%emt 0:00:35]} 18. Qxg3+ {[%emt 0:00:16]} Kh8 {[%emt 0:00:19]} 19. f3 {[%emt 0:02:50]} Rg8 {[%emt 0:00:12]} 20. Qh3 $19 {[%emt 0:00:29]} Rg7 {[%emt 0:01:57]} 21. Rf1 {[%emt 0:02:28]} Rag8 {[%emt 0:00:25]} 22. Rf2 {[%emt 0:00:36]} Rg6 {[%emt 0:00:41]} 23. g3 {[%emt 0:06:48]} Rh6 {[%emt 0:00:33]} 24. Qf1 {[%emt 0:01:27]} Nf8 {[%emt 0:01:39]} 25. c5 {[%emt 0:01:36]} Ng6 {[%emt 0:01:39]} 26. Qc1 {[%emt 0:05:12]} Nf4 {[%emt 0:00:30]} 27. Bf1 Nh3+ {[%emt 0:03:18]} 28. Bxh3 {[%emt 0:02:04]} Rxh3 {[%emt 0:00:03]} 29. Qe3 {[%emt 0:01:01]} Qg6 {[%emt 0:01:22]} 30. Re1 {[%emt 0:03:13]} Rxg3+ {[%emt 0:00:39]} 31. hxg3 {[%emt 0:01:24]} Qxg3+ {[%emt 0:00:21]} 32. Kf1 {[%emt 0:00:32]} Ba6+ {[%emt 0:00:11]} 33. Rfe2 {[%emt 0:00:28]} Qg2# {[%emt 0:00:11]} 0-1

[Event "FRA-ch Youth U12 2018"]
[Site "Agen"]
[Date "2018.04.21"]
[Round "8"]
[White "Pentcheff, Laura"]
[Black "Berezovsky, Fiorina"]
[Result "1/2-1/2"]
[ECO "A56"]
[WhiteElo "1512"]
[BlackElo "1678"]
[Annotator "NA"]
[PlyCount "78"]
[EventDate "2018.??.??"]
[EventType "swiss"]
[EventCountry "FRA"]
[SourceTitle "playchess.com"]
[Source "ChessBase"]
[SourceQuality "1"]
[TimeControl "5400+30"]

1. d4 {[%emt 0:00:00]} Nf6 {[%emt 0:00:20]} 2. c4 {[%emt 0:00:00]} c5 {[%emt 0:00:24]} 3. Nf3 {[%emt 0:00:00]} cxd4 {[%emt 0:00:21]} 4. Nxd4 {[%emt 0:00:09]} e5 {[%emt 0:00:29]} 5. Nb5 {[%emt 0:01:08]} d5 {[%emt 0:00:59]} 6. cxd5 {[%emt 0:14:23]} Bc5 {[%emt 0:01:15]} 7. g3 {[%emt 0:03:46]} a6 {[%emt 0:09:39]} 8. N5c3 {[%emt 0:01:16]} e4 {[%emt 0:02:33]} 9. Bg2 {[%emt 0:01:20]} Bf5 {[%emt 0:02:37]} 10. Nxe4 {[%emt 0:04:05]} Bxe4 {[%emt 0:09:11]} 11. Bxe4 {[%emt 0:03:41]} Bxf2+ {[%emt 0:01:35]} 12. Kxf2 {[%emt 0:01:20]} Nxe4+ {[%emt 0:00:18]} 13. Kg2 {[%emt 0:02:10]} O-O {[%emt 0:01:18]} 14. Be3 {[%emt 0:05:15]} Nd7 {[%emt 0:03:03]} 15. Qb3 {[%emt 0:11:11]} Ndf6 {[%emt 0:04:17]} 16. Rd1 {[%emt 0:13:07]} Qd7 {[%emt 0:05:51]} 17. Nd2 {[%emt 0:03:16]} Nxd2 {[%emt 0:05:01]} 18. Rxd2 {[%emt 0:00:15]} Ne4 {[%emt 0:01:06]} 19. Rd4 {[%emt 0:01:45]} Rfe8 {[%emt 0:03:47]} 20. Rb4 {[%emt 0:04:32]} b5 {[%emt 0:07:41]} 21. Qd3 {[%emt 0:07:31]} Qe7 {[%emt 0:03:16]} 22. a3 {[%emt 0:02:20]} Nxg3 {[%emt 0:03:19]} 23. hxg3 {[%emt 0:01:15]} Qxe3 {[%emt 0:00:14]} 24. Qxe3 {[%emt 0:00:24]} Rxe3 {[%emt 0:00:01]} 25. Kf2 {[%emt 0:00:49]} Rae8 {[%emt 0:01:03]} 26. Re1 {[%emt 0:00:04]} R3e5 {[%emt 0:03:22]} 27. Rd4 {[%emt 0:00:59]} Re4 {[%emt 0:02:38]} 28. Rxe4 {[%emt 0:01:18]} Rxe4 {[%emt 0:00:04]} 29. Rd1 {[%emt 0:00:07]} Kf8 {[%emt 0:00:14]} 30. d6 {[%emt 0:00:20]} Ke8 {[%emt 0:00:19]} 31. d7+ {[%emt 0:00:09]} Kd8 {[%emt 0:00:07]} 32. Rd6 {[%emt 0:00:19]} Re6 {[%emt 0:00:24]} 33. Rd5 {[%emt 0:00:20]} Re7 {[%emt 0:01:41]} 34. Rd6 {[%emt 0:00:24]} Rxd7 {[%emt 0:00:23]} 35. Rxa6 {[%emt 0:00:16]} Rd2 {[%emt 0:00:27]} 36. b4 {[%emt 0:01:28]} Rd4 {[%emt 0:00:20]} 37. Ra7 {[%emt 0:04:09]} Ke8 {[%emt 0:00:18]} 38. Rb7 {[%emt 0:00:43]} Rd5 {[%emt 0:00:25]} 39. Ra7 {[%emt 0:00:31]} h5 {[%emt 0:00:51]} 1/2-1/2

[Event "FRA-ch Youth U12 2018"]
[Site "Agen"]
[Date "2018.04.21"]
[Round "8"]
[White "Costa, My-Lan"]
[Black "Cornileau, Juliette"]
[Result "0-1"]
[ECO "B24"]
[WhiteElo "1360"]
[BlackElo "1654"]
[Annotator "NA"]
[PlyCount "110"]
[EventDate "2018.??.??"]
[EventType "swiss"]
[EventCountry "FRA"]
[SourceTitle "playchess.com"]
[Source "ChessBase"]
[SourceQuality "1"]
[TimeControl "5400+30"]

1. e4 {[%emt 0:00:00]} c5 {[%emt 0:00:07]} 2. Nc3 {[%emt 0:00:00]} Nc6 {[%emt 0:00:26]} 3. Bb5 {[%emt 0:00:00]} Nd4 {[%emt 0:00:33]} 4. Bc4 {[%emt 0:00:22]} e6 {[%emt 0:00:20]} 5. Nf3 {[%emt 0:00:25]} a6 {[%emt 0:01:53]} 6. Nxd4 {[%emt 0:00:50]} cxd4 {[%emt 0:00:08]} 7. Ne2 {[%emt 0:00:29]} b5 {[%emt 0:00:54]} 8. Bb3 {[%emt 0:00:19]} Bc5 {[%emt 0:01:19]} 9. d3 {[%emt 0:00:30]} h6 {[%emt 0:01:54]} 10. f4 {[%emt 0:00:58]} Nf6 {[%emt 0:02:43]} 11. h3 {[%emt 0:00:35]} Bb7 {[%emt 0:02:05]} 12. Ng3 {[%emt 0:04:50]} Qc7 {[%emt 0:02:16]} 13. O-O {[%emt 0:02:00]} O-O {[%emt 0:00:37]} 14. e5 {[%emt 0:04:42]} Nd5 {[%emt 0:00:57]} 15. Bxd5 {[%emt 0:04:36]} Bxd5 {[%emt 0:01:01]} 16. Qe2 {[%emt 0:01:04]} d6 {[%emt 0:06:37]} 17. Ne4 {[%emt 0:04:10]} Qc6 {[%emt 0:14:33]} 18. Nxc5 {[%emt 0:05:04]} dxc5 {[%emt 0:00:30]} 19. f5 {[%emt 0:00:30]} exf5 {[%emt 0:00:30]} 20. Rxf5 {[%emt 0:00:30]} Qg6 {[%emt 0:00:30]} 21. Rf2 {[%emt 0:00:30]} Rfe8 {[%emt 0:00:30]} 22. Bf4 {[%emt 0:00:30]} Re7 {[%emt 0:00:30]} 23. Re1 {[%emt 0:00:30]} Rae8 {[%emt 0:00:30]} 24. Qd2 {[%emt 0:00:30]} f6 {[%emt 0:00:30]} 25. e6 {[%emt 0:00:30]} Rxe6 {[%emt 0:00:30]} 26. Rxe6 {[%emt 0:00:30]} Rxe6 {[%emt 0:00:30]} 27. Re2 {[%emt 0:00:30]} Rxe2 {[%emt 0:00:30]} 28. Qxe2 {[%emt 0:00:30]} c4 {[%emt 0:41:32]} 29. a3 {[%emt 0:29:10]} Qf5 {[%emt 0:00:39]} 30. Bh2 {[%emt 0:04:00]} Qg5 {[%emt 0:01:35]} 31. Qf1 {[%emt 0:05:32]} Qd2 {[%emt 0:02:42]} 32. Qf2 {[%emt 0:09:35]} Qd1+ {[%emt 0:00:50]} 33. Qf1 {[%emt 0:00:36]} Qxc2 {[%emt 0:00:13]} 34. Bf4 {[%emt 0:02:34]} Qxb2 {[%emt 0:01:08]} 35. Bc1 {[%emt 0:01:03]} Qc2 {[%emt 0:00:11]} 36. Bf4 {[%emt 0:01:06]} cxd3 {[%emt 0:02:17]} 37. Qf2 {[%emt 0:01:14]} Qc3 {[%emt 0:03:37]} 38. Bd2 {[%emt 0:01:51]} Qxa3 {[%emt 0:01:52]} 39. Qxd4 {[%emt 0:00:26]} Bc4 {[%emt 0:00:20]} 40. Qc3 {[%emt 0:02:21]} Qxc3 {[%emt 0:00:22]} 41. Bxc3 {[%emt 0:00:10]} Kf7 {[%emt 0:00:09]} 42. Kf2 {[%emt 0:00:11]} Ke6 {[%emt 0:00:11]} 43. Ke3 {[%emt 0:00:14]} Kd5 {[%emt 0:00:31]} 44. Bb4 {[%emt 0:00:13]} g5 45. g4 {[%emt 0:00:42]} Ke6 {[%emt 0:02:35]} 46. Bc3 {[%emt 0:00:44]} Bd5 {[%emt 0:00:50]} 47. Kxd3 {[%emt 0:00:27]} Bg2 {[%emt 0:00:11]} 48. Ke3 {[%emt 0:00:10]} Bxh3 {[%emt 0:00:12]} 49. Kf3 {[%emt 0:00:25]} f5 {[%emt 0:00:47]} 50. gxf5+ {[%emt 0:00:09]} Bxf5 {[%emt 0:00:35]} 51. Ke3 {[%emt 0:00:24]} h5 {[%emt 0:00:14]} 52. Kf3 {[%emt 0:00:20]} h4 {[%emt 0:00:20]} 53. Kg2 {[%emt 0:00:15]} h3+ {[%emt 0:00:24]} 54. Kh2 {[%emt 0:00:10]} g4 {[%emt 0:00:39]} 55. Kg3 {[%emt 0:00:14]} Kd5 {[%emt 0:00:14]} 0-1